fUST/lending_fUST_20260603
["ID","MTS","AMOUNT","RATE_DAILY","PERIOD"]
[423820416,1780437040000,-534.57,0.00016164,2]
[423820408,1780437040000,-871.26,0.0001589,2]
[423820417,1780437040000,-627.95,0.00016164,2]
[423820419,1780437040000,-1319.07,0.00016164,2]
[423820413,1780437040000,-861.27,0.00016164,2]
[423820410,1780437040000,-500.0,0.0001589,2]
[423820421,1780437040000,-500.0,0.00016164,2]
[423820420,1780437040000,-586.51,0.00016164,2]
[423820411,1780437040000,-259.67366195,0.0001589,2]
[423820409,1780437040000,-500.0,0.0001589,2]
[423820412,1780437040000,-1323.77,0.0001589,2]
[423820418,1780437040000,-1863.65,0.00016164,2]
[423820414,1780437040000,-500.0,0.00016164,2]
[423820423,1780437040000,-631.99,0.00016164,2]
[423820430,1780437040000,-500.0,0.00016438,2]
[423820433,1780437040000,-627.95,0.00016438,2]
[423820434,1780437040000,-1863.65,0.00016438,2]
[423820424,1780437040000,-500.0,0.00016164,2]
[423820422,1780437040000,-1279.87,0.00016164,2]
[423820427,1780437040000,-500.0,0.00016164,2]
[423820426,1780437040000,-500.0,0.00016164,2]
[423820429,1780437040000,-861.27,0.00016438,2]
[423820428,1780437040000,-1323.77,0.00016164,2]
[423820425,1780437040000,-871.26,0.00016164,2]
[423820431,1780437040000,-500.0,0.00016438,2]
[423820432,1780437040000,-534.57,0.00016438,2]
[423820436,1780437040000,-586.51,0.00016438,2]
[423820439,1780437040000,-631.99,0.00016438,2]
[423820435,1780437040000,-1319.07,0.00016438,2]
[423820401,1780437040000,-1863.65,0.0001589,2]
[423820376,1780437040000,-1323.77,0.00015342,2]
[423820402,1780437040000,-1319.07,0.0001589,2]
[423820438,1780437040000,-1279.87,0.00016438,2]
[423820375,1780437040000,-500.0,0.00015342,2]
[423820379,1780437040000,-500.0,0.00015616,2]
[423820378,1780437040000,-500.0,0.00015616,2]
[423820377,1780437040000,-861.27,0.00015616,2]
[423820380,1780437040000,-500.0,0.00015616,2]
[423820384,1780437040000,-1319.07,0.00015616,2]
[423820383,1780437040000,-1863.65,0.00015616,2]
[423820382,1780437040000,-627.95,0.00015616,2]
[423820388,1780437040000,-631.99,0.00015616,2]
[423820385,1780437040000,-586.51,0.00015616,2]
[423820390,1780437040000,-871.26,0.00015616,2]
[423820386,1780437040000,-500.0,0.00015616,2]
[423820387,1780437040000,-1279.87,0.00015616,2]
[423820404,1780437040000,-500.0,0.0001589,2]
[423820392,1780437040000,-500.0,0.00015616,2]
[423820389,1780437040000,-500.0,0.00015616,2]
[423820393,1780437040000,-500.0,0.00015616,2]
[423820391,1780437040000,-500.0,0.00015616,2]
[423820395,1780437040000,-177.116918,0.00015873,2]
[423820405,1780437040000,-1279.87,0.0001589,2]
[423820407,1780437040000,-500.0,0.0001589,2]
[423820406,1780437040000,-631.99,0.0001589,2]
[423820403,1780437040000,-586.51,0.0001589,2]
[423820397,1780437040000,-500.0,0.0001589,2]
[423820398,1780437040000,-500.0,0.0001589,2]
[423820394,1780437040000,-1323.77,0.00015616,2]
[423820399,1780437040000,-534.57,0.0001589,2]
[423820400,1780437040000,-627.95,0.0001589,2]
[423820396,1780437040000,-861.27,0.0001589,2]
[423820381,1780437040000,-534.57,0.00015616,2]
[423820437,1780437040000,-500.0,0.00016438,2]
[423820499,1780437040000,-500.0,0.00016997,2]
[423820447,1780437040000,-861.27,0.00016712,2]
[423820472,1780437040000,-1279.87,0.00016986,2]
[423820488,1780437040000,-500.0,0.00016997,2]
[423820478,1780437040000,-169.11787625,0.00016989,2]
[423820477,1780437040000,-1323.77,0.00016986,2]
[423820479,1780437040000,-300.21192386,0.00016989,2]
[423820481,1780437040000,-500.0,0.00016997,2]
[423820480,1780437040000,-176.6468518,0.00016995,2]
[423820486,1780437040000,-294.15,0.00016997,2]
[423820482,1780437040000,-500.0,0.00016997,2]
[423820487,1780437040000,-500.0,0.00016997,2]
[423820485,1780437040000,-438.85846126,0.00016997,2]
[423820484,1780437040000,-500.0,0.00016997,2]
[423820483,1780437040000,-500.0,0.00016997,2]
[423820490,1780437040000,-500.0,0.00016997,2]
[423820489,1780437040000,-500.0,0.00016997,2]
[423820492,1780437040000,-500.0,0.00016997,2]
[423820494,1780437040000,-500.0,0.00016997,2]
[423820493,1780437040000,-500.0,0.00016997,2]
[423820491,1780437040000,-500.0,0.00016997,2]
[423820496,1780437040000,-1301.03,0.00016997,2]
[423820495,1780437040000,-500.0,0.00016997,2]
[423820498,1780437040000,-500.0,0.00016997,2]
[423820497,1780437040000,-500.0,0.00016997,2]
[423820448,1780437040000,-500.0,0.00016712,2]
[423820500,1780437040000,-500.0,0.00016997,2]
[423820501,1780437040000,-606.62,0.00016997,2]
[423820503,1780437040000,-500.0,0.00016997,2]
[423820505,1780437040000,-5341.7309134,0.00016998,2]
[423820504,1780437040000,-5881.7856895,0.00016998,2]
[423820471,1780437040000,-500.0,0.00016986,2]
[423820468,1780437040000,-1863.65,0.00016986,2]
[423820502,1780437040000,-500.0,0.00016997,2]
[423820476,1780437040000,-500.0,0.00016986,2]
[423820441,1780437040000,-871.26,0.00016438,2]
[423820440,1780437040000,-500.0,0.00016438,2]
[423820442,1780437040000,-500.0,0.00016438,2]
[423820443,1780437040000,-151.64000001,0.00016438,2]
[423820445,1780437040000,-151.02,0.000165,2]
[423820444,1780437040000,-1323.77,0.00016438,2]
[423820446,1780437040000,-156.99559926,0.0001658,2]
[423820450,1780437040000,-534.57,0.00016712,2]
[423820473,1780437040000,-631.99,0.00016986,2]
[423820459,1780437040000,-871.26,0.00016712,2]
[423820458,1780437040000,-500.0,0.00016712,2]
[423820449,1780437040000,-500.0,0.00016712,2]
[423820457,1780437040000,-631.99,0.00016712,2]
[423820462,1780437040000,-159.76199353,0.00016898,2]
[423820451,1780437040000,-627.95,0.00016712,2]
[423820456,1780437040000,-1279.87,0.00016712,2]
[423820460,1780437040000,-500.0,0.00016712,2]
[423820452,1780437040000,-1863.65,0.00016712,2]
[423820470,1780437040000,-586.51,0.00016986,2]
[423820469,1780437040000,-1319.07,0.00016986,2]
[423820475,1780437040000,-871.26,0.00016986,2]
[423820464,1780437040000,-500.0,0.00016986,2]
[423820465,1780437040000,-500.0,0.00016986,2]
[423820474,1780437040000,-500.0,0.00016986,2]
[423820466,1780437040000,-534.57,0.00016986,2]
[423820463,1780437040000,-861.27,0.00016986,2]
[423820454,1780437040000,-586.51,0.00016712,2]
[423820455,1780437040000,-500.0,0.00016712,2]
[423820453,1780437040000,-1319.07,0.00016712,2]
[423820461,1780437040000,-1323.77,0.00016712,2]
[423820467,1780437040000,-627.95,0.00016986,2]
[423820547,1780437041000,-338.2357525,0.00017514,2]
[423820562,1780437041000,-500.0,0.00017534,2]
[423820552,1780437041000,-246.44780665,0.00017514,2]
[423820546,1780437041000,-216.76718185,0.00017474,2]
[423820545,1780437041000,-160.0,0.0001729,2]
[423820544,1780437041000,-500.0,0.00017271,2]
[423820550,1780437041000,-267.48999822,0.00017514,2]
[423820537,1780437041000,-1301.03,0.00017271,2]
[423820543,1780437041000,-500.0,0.00017271,2]
[423820539,1780437041000,-500.0,0.00017271,2]
[423820540,1780437041000,-500.0,0.00017271,2]
[423820541,1780437041000,-500.0,0.00017271,2]
[423820542,1780437041000,-606.62,0.00017271,2]
[423820551,1780437041000,-283.83034989,0.00017514,2]
[423820577,1780437041000,-871.26,0.00017534,2]
[423820565,1780437041000,-1863.65,0.00017534,2]
[423820566,1780437041000,-1319.07,0.00017534,2]
[423820563,1780437041000,-534.57,0.00017534,2]
[423820557,1780437041000,-234.14514923,0.00017521,2]
[423820568,1780437041000,-586.51,0.00017534,2]
[423820555,1780437041000,-172.20252852,0.00017521,2]
[423820554,1780437041000,-353.2937036,0.00017521,2]
[423820558,1780437041000,-861.27,0.00017534,2]
[423820553,1780437041000,-556.04656366,0.00017514,2]
[423820560,1780437041000,-500.0,0.00017534,2]
[423820571,1780437041000,-1279.87,0.00017534,2]
[423820573,1780437041000,-631.99,0.00017534,2]
[423820575,1780437041000,-500.0,0.00017534,2]
[423820548,1780437041000,-450.31788579,0.00017514,2]
[423820564,1780437041000,-627.95,0.00017534,2]
[423820538,1780437041000,-500.0,0.00017271,2]
[423820520,1780437041000,-500.0,0.0001726,2]
[423820536,1780437041000,-500.0,0.00017271,2]
[423820570,1780437041000,-500.0,0.00017534,2]
[423820508,1780437041000,-7408.5039734,0.00016998,2]
[423820509,1780437041000,-697.8565473,0.00016998,2]
[423820506,1780437041000,-157.3483902,0.00016998,2]
[423820507,1780437041000,-2843.6903671,0.00016998,2]
[423820510,1780437041000,-324.2937254,0.00016998,2]
[423820511,1780437041000,-861.27,0.0001726,2]
[423820512,1780437041000,-500.0,0.0001726,2]
[423820513,1780437041000,-500.0,0.0001726,2]
[423820523,1780437041000,-500.0,0.0001726,2]
[423820514,1780437041000,-534.57,0.0001726,2]
[423820515,1780437041000,-627.95,0.0001726,2]
[423820517,1780437041000,-282.79350553,0.0001726,2]
[423820518,1780437041000,-1319.07,0.0001726,2]
[423820516,1780437041000,-1580.85649447,0.0001726,2]
[423820519,1780437041000,-586.51,0.0001726,2]
[423820521,1780437041000,-1279.87,0.0001726,2]
[423820535,1780437041000,-500.0,0.00017271,2]
[423820525,1780437041000,-500.0,0.0001726,2]
[423820524,1780437041000,-871.26,0.0001726,2]
[423820527,1780437041000,-500.0,0.00017271,2]
[423820529,1780437041000,-500.0,0.00017271,2]
[423820530,1780437041000,-500.0,0.00017271,2]
[423820526,1780437041000,-1323.77,0.0001726,2]
[423820528,1780437041000,-500.0,0.00017271,2]
[423820531,1780437041000,-500.0,0.00017271,2]
[423820532,1780437041000,-500.0,0.00017271,2]
[423820533,1780437041000,-500.0,0.00017271,2]
[423820534,1780437041000,-500.0,0.00017271,2]
[423820549,1780437041000,-170.76190334,0.00017514,2]
[423820578,1780437041000,-561.47,0.00017534,2]
[423820522,1780437041000,-631.99,0.0001726,2]
[423820585,1780437041000,-500.0,0.00017545,2]
[423820640,1780437041000,-500.0,0.00017808,2]
[423820650,1780437041000,-500.0,0.00017819,2]
[423820648,1780437041000,-500.0,0.00017819,2]
[423820644,1780437041000,-1323.77,0.00017808,2]
[423820646,1780437041000,-496.74,0.00017819,2]
[423820652,1780437041000,-592.64,0.00017819,2]
[423820656,1780437041000,-204.4,0.00017819,2]
[423820654,1780437041000,-500.0,0.00017819,2]
[423820658,1780437041000,-500.0,0.00017819,2]
[423820660,1780437041000,-500.0,0.00017819,2]
[423820662,1780437041000,-1301.03,0.00017819,2]
[423820672,1780437041000,-600.42384772,0.00017864,2]
[423820673,1780437041000,-348.16488436,0.00017864,2]
[423820675,1780437041000,-166.71891545,0.00017864,2]
[423820674,1780437041000,-341.52380668,0.00017864,2]
[423820665,1780437041000,-500.0,0.00017819,2]
[423820663,1780437041000,-500.0,0.00017819,2]
[423820667,1780437041000,-606.62,0.00017819,2]
[423820669,1780437041000,-500.0,0.00017819,2]
[423820677,1780437041000,-285.23390466,0.00017864,2]
[423820678,1780437041000,-534.97999645,0.00017864,2]
[423820671,1780437041000,-500.0,0.00017819,2]
[423820676,1780437041000,-376.30880689,0.00017864,2]
[423820679,1780437041000,-273.22201632,0.00017864,2]
[423820681,1780437041000,-492.89561329,0.00017864,2]
[423820682,1780437041000,-741.39541822,0.00017864,2]
[423820684,1780437041000,-189.03434452,0.00017864,2]
[423820683,1780437041000,-349.13621497,0.00017864,2]
[423820582,1780437041000,-177.116918,0.00017543,2]
[423820642,1780437041000,-871.26,0.00017808,2]
[423820638,1780437041000,-631.99,0.00017808,2]
[423820680,1780437041000,-567.66069978,0.00017864,2]
[423820634,1780437041000,-500.0,0.00017808,2]
[423820636,1780437041000,-1279.87,0.00017808,2]
[423820589,1780437041000,-500.0,0.00017545,2]
[423820583,1780437041000,-500.0,0.00017545,2]
[423820587,1780437041000,-500.0,0.00017545,2]
[423820590,1780437041000,-500.0,0.00017545,2]
[423820591,1780437041000,-280.32,0.00017545,2]
[423820593,1780437041000,-500.0,0.00017545,2]
[423820594,1780437041000,-500.0,0.00017545,2]
[423820595,1780437041000,-510.01,0.00017545,2]
[423820580,1780437041000,-1323.77,0.00017534,2]
[423820599,1780437041000,-500.0,0.00017545,2]
[423820601,1780437041000,-500.0,0.00017545,2]
[423820592,1780437041000,-500.0,0.00017545,2]
[423820596,1780437041000,-1301.03,0.00017545,2]
[423820597,1780437041000,-500.0,0.00017545,2]
[423820603,1780437041000,-500.0,0.00017545,2]
[423820608,1780437041000,-500.0,0.00017545,2]
[423820605,1780437041000,-606.62,0.00017545,2]
[423820630,1780437041000,-1319.07,0.00017808,2]
[423820628,1780437041000,-1863.65,0.00017808,2]
[423820616,1780437041000,-150.307,0.00017808,2]
[423820618,1780437041000,-861.27,0.00017808,2]
[423820626,1780437041000,-627.95,0.00017808,2]
[423820620,1780437041000,-458.56,0.00017808,2]
[423820632,1780437041000,-586.51,0.00017808,2]
[423820614,1780437041000,-293.453,0.00017808,2]
[423820622,1780437041000,-500.0,0.00017808,2]
[423820612,1780437041000,-159.76199351,0.00017796,2]
[423820610,1780437041000,-173.73069484,0.00017565,2]
[423820606,1780437041000,-500.0,0.00017545,2]
[423820624,1780437041000,-534.57,0.00017808,2]
[423820729,1780437042000,-1279.87,0.00018356,2]
[423820727,1780437042000,-586.51,0.00018356,2]
[423820728,1780437042000,-494.37,0.00018356,2]
[423820725,1780437042000,-1863.65,0.00018356,2]
[423820730,1780437042000,-631.99,0.00018356,2]
[423820726,1780437042000,-1319.07,0.00018356,2]
[423820732,1780437042000,-1323.77,0.00018356,2]
[423820724,1780437042000,-627.95,0.00018356,2]
[423820722,1780437042000,-500.0,0.00018356,2]
[423820731,1780437042000,-871.26,0.00018356,2]
[423820721,1780437042000,-861.27,0.00018356,2]
[423820720,1780437042000,-926.74427277,0.00018215,2]
[423820723,1780437042000,-534.57,0.00018356,2]
[423820733,1780437042000,-637.38,0.00018367,2]
[423820758,1780437042000,-606.62,0.00018641,2]
[423820735,1780437042000,-500.0,0.00018367,2]
[423820736,1780437042000,-1301.03,0.00018367,2]
[423820737,1780437042000,-500.0,0.00018367,2]
[423820741,1780437042000,-500.0,0.00018367,2]
[423820740,1780437042000,-500.0,0.00018367,2]
[423820739,1780437042000,-606.62,0.00018367,2]
[423820738,1780437042000,-171.94,0.00018367,2]
[423820743,1780437042000,-500.0,0.0001863,2]
[423820744,1780437042000,-534.57,0.0001863,2]
[423820742,1780437042000,-861.27,0.0001863,2]
[423820746,1780437042000,-1863.65,0.0001863,2]
[423820757,1780437042000,-500.0,0.00018641,2]
[423820756,1780437042000,-1301.03,0.00018641,2]
[423820714,1780437042000,-500.0,0.00018093,2]
[423820734,1780437042000,-500.0,0.00018367,2]
[423820716,1780437042000,-500.0,0.00018093,2]
[423820686,1780437042000,-529.94055541,0.00017871,2]
[423820717,1780437042000,-500.0,0.00018093,2]
[423820685,1780437042000,-158.43231863,0.00017864,2]
[423820745,1780437042000,-627.95,0.0001863,2]
[423820689,1780437042000,-1836.0,0.00017875,2]
[423820691,1780437042000,-444.0,0.00017875,2]
[423820688,1780437042000,-1415.0,0.00017875,2]
[423820690,1780437042000,-3630.0,0.00017875,2]
[423820687,1780437042000,-468.29029847,0.00017871,2]
[423820692,1780437042000,-759.364,0.00017875,2]
[423820693,1780437042000,-185.341,0.00017875,2]
[423820706,1780437042000,-413.56,0.00018082,2]
[423820695,1780437042000,-150.342,0.00017875,2]
[423820705,1780437042000,-631.99,0.00018082,2]
[423820697,1780437042000,-500.0,0.00018082,2]
[423820694,1780437042000,-150.846,0.00017875,2]
[423820696,1780437042000,-861.27,0.00018082,2]
[423820699,1780437042000,-627.95,0.00018082,2]
[423820701,1780437042000,-1319.07,0.00018082,2]
[423820715,1780437042000,-606.62,0.00018093,2]
[423820719,1780437042000,-750.52980965,0.00018215,2]
[423820712,1780437042000,-1301.03,0.00018093,2]
[423820718,1780437042000,-151.02,0.000181,2]
[423820711,1780437042000,-500.0,0.00018093,2]
[423820708,1780437042000,-1323.77,0.00018082,2]
[423820713,1780437042000,-500.0,0.00018093,2]
[423820710,1780437042000,-500.0,0.00018093,2]
[423820707,1780437042000,-871.26,0.00018082,2]
[423820703,1780437042000,-500.0,0.00018082,2]
[423820698,1780437042000,-534.57,0.00018082,2]
[423820700,1780437042000,-1863.65,0.00018082,2]
[423820702,1780437042000,-586.51,0.00018082,2]
[423820704,1780437042000,-1279.87,0.00018082,2]
[423820709,1780437042000,-500.0,0.00018093,2]
[423820755,1780437042000,-500.0,0.00018641,2]
[423820769,1780437042000,-316.73276992,0.00018783,2]
[423820747,1780437042000,-1319.07,0.0001863,2]
[423820791,1780437042000,-156.99559926,0.00019013,2]
[423820793,1780437042000,-861.27,0.00019178,2]
[423820792,1780437042000,-300.0,0.00019178,2]
[423820789,1780437042000,-500.0,0.00018915,2]
[423820799,1780437042000,-1863.65,0.00019178,2]
[423820797,1780437042000,-627.95,0.00019178,2]
[423820794,1780437042000,-321.44,0.00019178,2]
[423820795,1780437042000,-534.57,0.00019178,2]
[423820788,1780437042000,-500.0,0.00018915,2]
[423820803,1780437042000,-586.51,0.00019178,2]
[423820749,1780437042000,-1279.87,0.0001863,2]
[423820807,1780437042000,-631.99,0.00019178,2]
[423820817,1780437042000,-500.0,0.00019189,2]
[423820818,1780437042000,-606.62,0.00019189,2]
[423820790,1780437042000,-156097.7211443,0.00019,2]
[423820806,1780437042000,-1279.87,0.00019178,2]
[423820820,1780437042000,-500.0,0.00019189,2]
[423820809,1780437042000,-1323.77,0.00019178,2]
[423820819,1780437042000,-500.0,0.00019189,2]
[423820810,1780437042000,-151.0,0.00019178,2]
[423820814,1780437042000,-988.89,0.00019178,2]
[423820811,1780437042000,-151.0,0.00019178,2]
[423820813,1780437042000,-151.0,0.00019178,2]
[423820812,1780437042000,-151.0,0.00019178,2]
[423820816,1780437042000,-1301.03,0.00019189,2]
[423820815,1780437042000,-500.0,0.00019189,2]
[423820822,1780437042000,-390.18092732,0.00019242,2]
[423820824,1780437042000,-500.0,0.00019331,2]
[423820821,1780437042000,-177.116918,0.00019213,2]
[423820823,1780437042000,-300.1,0.00019299,2]
[423820808,1780437042000,-871.26,0.00019178,2]
[423820787,1780437042000,-606.62,0.00018915,2]
[423820801,1780437042000,-1319.07,0.00019178,2]
[423820781,1780437042000,-1273.75196124,0.00018904,2]
[423820748,1780437042000,-586.51,0.0001863,2]
[423820752,1780437042000,-1323.77,0.0001863,2]
[423820779,1780437042000,-871.26,0.00018904,2]
[423820750,1780437042000,-631.99,0.0001863,2]
[423820754,1780437042000,-500.0,0.00018641,2]
[423820753,1780437042000,-988.89,0.0001863,2]
[423820771,1780437042000,-500.0,0.00018904,2]
[423820770,1780437042000,-861.27,0.00018904,2]
[423820765,1780437042000,-156.78401659,0.00018783,2]
[423820766,1780437042000,-500.0,0.00018783,2]
[423820764,1780437042000,-151.0,0.00018783,2]
[423820761,1780437042000,-159.76199351,0.00018693,2]
[423820760,1780437042000,-500.0,0.00018641,2]
[423820762,1780437042000,-1112.09312733,0.0001874,2]
[423820767,1780437042000,-162.380719,0.00018783,2]
[423820751,1780437042000,-871.26,0.0001863,2]
[423820763,1780437042000,-151.0,0.00018783,2]
[423820759,1780437042000,-500.0,0.00018641,2]
[423820778,1780437042000,-631.99,0.00018904,2]
[423820777,1780437042000,-1279.87,0.00018904,2]
[423820782,1780437042000,-1323.77,0.00018904,2]
[423820774,1780437042000,-1863.65,0.00018904,2]
[423820786,1780437042000,-500.0,0.00018915,2]
[423820784,1780437042000,-500.0,0.00018915,2]
[423820780,1780437042000,-707.63997846,0.00018904,2]
[423820772,1780437042000,-534.57,0.00018904,2]
[423820776,1780437042000,-586.51,0.00018904,2]
[423820775,1780437042000,-1319.07,0.00018904,2]
[423820783,1780437042000,-988.89,0.00018904,2]
[423820773,1780437042000,-627.95,0.00018904,2]
[423820785,1780437042000,-1301.03,0.00018915,2]
[423820768,1780437042000,-537.6845,0.00018783,2]
[423820844,1780437043000,-482.96243812,0.00019552,2]
[423820843,1780437043000,-1297.44198188,0.00019528,2]
[423820841,1780437043000,-500.0,0.00019463,2]
[423820837,1780437043000,-608.0,0.00019463,2]
[423820839,1780437043000,-500.0,0.00019463,2]
[423820845,1780437043000,-777.22110529,0.00019589,3]
[423820848,1780437043000,-215.46321095,0.000196,2]
[423820849,1780437043000,-151.02,0.000196,2]
[423820847,1780437043000,-159.76199351,0.00019591,2]
[423820846,1780437043000,-498.54163444,0.00019589,3]
[423820838,1780437043000,-1301.03,0.00019463,2]
[423820842,1780437043000,-500.0,0.00019463,2]
[423820826,1780437043000,-861.27,0.00019452,2]
[423820835,1780437043000,-1323.77,0.00019452,2]
[423820840,1780437043000,-606.62,0.00019463,2]
[423820828,1780437043000,-627.95,0.00019452,2]
[423820829,1780437043000,-1863.65,0.00019452,2]
[423820827,1780437043000,-534.57,0.00019452,2]
[423820825,1780437043000,-557.5788265,0.00019331,2]
[423820834,1780437043000,-871.26,0.00019452,2]
[423820831,1780437043000,-586.51,0.00019452,2]
[423820830,1780437043000,-1319.07,0.00019452,2]
[423820833,1780437043000,-631.99,0.00019452,2]
[423820832,1780437043000,-1279.87,0.00019452,2]
[423820850,1780437043000,-500.0,0.00019691,2]
[423820836,1780437043000,-988.89,0.00019452,2]
[423820851,1780437043000,-151.0,0.00019695,2]
[423820883,1780437043000,-936.6377374,0.0002,2]
[423820853,1780437043000,-151.0,0.00019695,2]
[423820855,1780437043000,-762603.8344,0.00019695,2]
[423820877,1780437043000,-2207.895867,0.00019796,2]
[423820878,1780437043000,-654.64947226,0.00019826,2]
[423820876,1780437043000,-1183.947933,0.00019796,2]
[423820874,1780437043000,-160.0,0.00019796,2]
[423820872,1780437043000,-500.0,0.00019737,2]
[423820870,1780437043000,-500.0,0.00019737,2]
[423820881,1780437043000,-336613.95051198,0.0002,2]
[423820868,1780437043000,-500.0,0.00019737,2]
[423820880,1780437043000,-578.20924308,0.00019879,2]
[423820879,1780437043000,-500.0,0.00019879,2]
[423820869,1780437043000,-606.62,0.00019737,2]
[423820864,1780437043000,-871.26,0.00019726,2]
[423820882,1780437043000,-6361.73702708,0.0002,2]
[423820862,1780437043000,-1279.87,0.00019726,2]
[423820865,1780437043000,-1323.77,0.00019726,2]
[423820860,1780437043000,-1319.07,0.00019726,2]
[423820863,1780437043000,-631.99,0.00019726,2]
[423820861,1780437043000,-586.51,0.00019726,2]
[423820859,1780437043000,-1863.65,0.00019726,2]
[423820858,1780437043000,-627.95,0.00019726,2]
[423820856,1780437043000,-861.27,0.00019726,2]
[423820867,1780437043000,-1301.03,0.00019737,2]
[423820857,1780437043000,-534.57,0.00019726,2]
[423820854,1780437043000,-151.0,0.00019695,2]
[423820852,1780437043000,-151.0,0.00019695,2]
[423820866,1780437043000,-988.89,0.00019726,2]
[423821010,1780437046000,-633.07078264,0.00013971,2]
[423821011,1780437046000,-361.31729941,0.00013972,2]
[423821017,1780437046000,-1604.82342874,0.0002,2]
[423821009,1780437046000,-500.0,0.00013698,2]
[423821013,1780437046000,-151.0,0.00019,2]
[423821016,1780437046000,-151.0,0.00019695,2]
[423821012,1780437046000,-2066.46076001,0.00016355,2]
[423821015,1780437046000,-151.0,0.00019695,2]
[423821014,1780437046000,-151.0,0.00019,2]
[423821081,1780437140000,5000.0,0.00023395,30]
[423821113,1780437264000,-351.23202934,0.00023462,30]
[423821110,1780437264000,-4597.0,0.000234,30]
[423821112,1780437264000,-620.11594968,0.00023462,120]
[423821111,1780437264000,-668611.11990954,0.00023443,25]
[423821109,1780437264000,-154.0,0.00023395,120]
[423821106,1780437264000,-152.0,0.000232,120]
[423821108,1780437264000,-401.0,0.00023395,120]
[423821103,1780437264000,-401.0,0.00022698,30]
[423821102,1780437264000,-468.430135,0.00022567,14]
[423821105,1780437264000,-653.85165579,0.00023,23]
[423821104,1780437264000,-710.36876,0.00022765,14]
[423821100,1780437264000,-153.28,0.00021901,10]
[423821099,1780437264000,-401.0,0.00021698,30]
[423821115,1780437264000,-307.06925777,0.00023472,120]
[423821107,1780437264000,-1217.94,0.00023379,30]
[423821114,1780437264000,-830.22238066,0.00023471,120]
[423821101,1780437264000,-720.0,0.00022439,10]
[423821117,1780437264000,-203.2466974,0.00023475,120]
[423821116,1780437264000,-319.83749879,0.00023472,120]
[423821133,1780437264000,-155.26171622,0.00025395,120]
[423821129,1780437264000,-158.20064565,0.00025,14]
[423821131,1780437264000,-160.0,0.00025,30]
[423821127,1780437264000,-152.0,0.000248,120]
[423821130,1780437264000,-200.0,0.00025,120]
[423821128,1780437264000,-300.00000002,0.000249,30]
[423821126,1780437264000,-401.0,0.00024698,30]
[423821132,1780437264000,-401.0,0.00025395,120]
[423821123,1780437264000,-401.0,0.00024395,120]
[423821124,1780437264000,-154.0,0.00024395,120]
[423821121,1780437264000,-421.587121,0.00023696,14]
[423821122,1780437264000,-401.0,0.00023698,30]
[423821120,1780437264000,-621.42476989,0.00023479,120]
[423821118,1780437264000,-318.55968363,0.00023475,120]
[423821119,1780437264000,-415.46643803,0.00023475,120]
[423821125,1780437264000,-864.0,0.00024683,10]
[423821143,1780437265000,-152.0,0.000279,120]
[423821142,1780437265000,-401.0,0.00027698,30]
[423821140,1780437265000,-1000.0,0.00027151,30]
[423821136,1780437265000,-210.79356,0.00025953,14]
[423821135,1780437265000,-236.789586,0.00025735,14]